fUSD/lending_fUSD_20250617
["ID","MTS","AMOUNT","RATE_DAILY","PERIOD"]
[366341210,1750198245718,-583.02210992,0.00016438,2]
[366341211,1750198245728,-151.0,0.00016438,2]
[366341212,1750198245739,-151.0,0.00016438,2]
[366341213,1750198245752,-150.0,0.00016438,2]
[366341214,1750198245763,-151.0,0.00016438,2]
[366341215,1750198245776,-490.0,0.00016438,2]
[366341216,1750198245787,-976.64,0.00016438,2]
[366341217,1750198245798,-237.739033,0.00016438,2]
[366341218,1750198245807,-150.0,0.00016438,2]
[366341219,1750198245817,-490.0,0.00016438,2]
[366341220,1750198245828,-2359.14,0.00016438,2]
[366341221,1750198245838,-490.0,0.00016438,2]
[366341222,1750198245848,-618.57,0.00016438,2]
[366341223,1750198245860,-490.0,0.00016438,2]
[366341224,1750198245870,-151.77172755,0.00016438,2]
[366341225,1750198245879,-490.0,0.00016438,2]
[366341226,1750198245890,-490.0,0.00016438,2]
[366341227,1750198245900,-1508.74,0.00016438,2]
[366341228,1750198245909,-490.0,0.00016438,2]
[366341229,1750198245919,-552.61,0.00016438,2]
[366341230,1750198245928,-490.0,0.00016438,2]
[366341231,1750198245938,-1736.96,0.00016438,2]
[366341232,1750198245949,-152.14976628,0.00016438,2]
[366341233,1750198245959,-490.0,0.00016438,2]
[366341234,1750198245968,-490.0,0.00016438,2]
[366341235,1750198245979,-490.0,0.00016438,2]
[366341236,1750198245989,-490.0,0.00016438,2]
[366341237,1750198246000,-490.0,0.00016438,2]
[366341238,1750198246011,-490.0,0.00016438,2]
[366341239,1750198246021,-655.13,0.00016438,2]
[366341240,1750198246031,-460.0,0.00016438,2]
[366341241,1750198246040,-495.00785732,0.00016438,2]
[366341242,1750198246050,-886.37,0.00016438,2]
[366341243,1750198246060,-490.0,0.00016438,2]
[366341244,1750198246069,-490.0,0.00016438,2]
[366341245,1750198246079,-490.0,0.00016438,2]
[366341246,1750198246089,-490.0,0.00016438,2]
[366341247,1750198246098,-1335.82,0.00016438,2]
[366341248,1750198246108,-490.0,0.00016438,2]
[366341249,1750198246119,-490.0,0.00016438,2]
[366341250,1750198246129,-440.0,0.00016438,2]
[366341251,1750198246139,-490.0,0.00016438,2]
[366341253,1750198246149,-570.16,0.00016438,2]
[366341254,1750198246159,-374.32,0.00016438,2]
[366341255,1750198246168,-1095.11,0.00016438,2]
[366341256,1750198246178,-595.61,0.00016438,2]
[366341258,1750198246187,-490.0,0.00016438,2]
[366341260,1750198246197,-480.75,0.00016438,2]
[366341262,1750198246208,-490.0,0.00016438,2]
[366341264,1750198246218,-490.0,0.00016438,2]
[366341266,1750198246227,-307.223628,0.00016438,2]
[366341268,1750198246237,-1031.55,0.00016438,2]
[366341270,1750198246246,-307.223628,0.00016438,2]
[366341271,1750198246257,-307.223628,0.00016438,2]
[366341272,1750198246266,-490.0,0.00016438,2]
[366341273,1750198246276,-307.223628,0.00016438,2]
[366341274,1750198246285,-307.223628,0.00016438,2]
[366341275,1750198246295,-490.0,0.00016438,2]
[366341276,1750198246305,-307.223628,0.00016438,2]
[366341277,1750198246316,-490.0,0.00016438,2]
[366341278,1750198246325,-650.22,0.00016438,2]
[366341279,1750198246336,-2094.03,0.00016438,2]
[366341280,1750198246346,-307.223628,0.00016438,2]
[366341281,1750198246356,-630.7,0.00016438,2]
[366341282,1750198246366,-307.223628,0.00016438,2]
[366341283,1750198246376,-490.0,0.00016438,2]
[366341284,1750198246386,-307.223628,0.00016438,2]
[366341285,1750198246397,-490.0,0.00016438,2]
[366341286,1750198246407,-307.223628,0.00016438,2]
[366341287,1750198246416,-307.223628,0.00016438,2]
[366341288,1750198246427,-853.44,0.00016438,2]
[366341289,1750198246437,-490.0,0.00016438,2]
[366341290,1750198246447,-1293.6,0.00016438,2]
[366341291,1750198246457,-307.223628,0.00016438,2]
[366341292,1750198246467,-490.0,0.00016438,2]
[366341293,1750198246478,-151.0,0.00016438,2]
[366341294,1750198246488,-490.0,0.00016438,2]
[366341295,1750198246498,-490.0,0.00016438,2]
[366341296,1750198246508,-151.0,0.00016438,2]
[366341297,1750198246518,-490.0,0.00016438,2]
[366341298,1750198246527,-772.04,0.00016438,2]
[366341299,1750198246537,-490.0,0.00016438,2]
[366341300,1750198246547,-490.0,0.00016438,2]
[366341301,1750198246558,-490.0,0.00016438,2]
[366341302,1750198246568,-846.61,0.00016438,2]
[366341303,1750198246578,-490.0,0.00016438,2]
[366341304,1750198246588,-490.0,0.00016438,2]
[366341305,1750198246599,-1032.24,0.00016438,2]
[366341306,1750198246609,-490.0,0.00016438,2]
[366341307,1750198246619,-490.0,0.00016438,2]
[366341308,1750198246629,-490.0,0.00016438,2]
[366341309,1750198246639,-1773.18,0.00016438,2]
[366341310,1750198246649,-490.0,0.00016438,2]
[366341311,1750198246659,-267.61537673,0.00016438,2]
[366341312,1750198246669,-490.0,0.00016438,2]
[366341313,1750198246678,-525.3,0.00016438,2]
[366341314,1750198246689,-490.0,0.00016438,2]
[366341315,1750198246699,-835.05,0.00016438,2]
[366341316,1750198246711,-490.0,0.00016438,2]
[366341317,1750198246722,-490.0,0.00016438,2]
[366341318,1750198246732,-490.0,0.00016438,2]
[366341319,1750198246742,-490.0,0.00016438,2]
[366341320,1750198246752,-490.0,0.00016438,2]
[366341321,1750198246842,-490.0,0.00016438,2]
[366341322,1750198246852,-490.0,0.00016438,2]
[366341323,1750198246861,-490.0,0.00016438,2]
[366341324,1750198246871,-490.0,0.00016438,2]
[366341325,1750198246882,-490.0,0.00016438,2]
[366341326,1750198246893,-980.53,0.00016438,2]
[366341327,1750198246902,-2349.83,0.00016438,2]
[366341328,1750198246912,-1177.23,0.00016438,2]
[366341329,1750198246924,-868.69,0.00016438,2]
[366341330,1750198246934,-490.0,0.00016438,2]
[366341331,1750198246944,-490.0,0.00016438,2]
[366341332,1750198246953,-490.0,0.00016438,2]
[366341333,1750198246965,-490.0,0.00016438,2]
[366341334,1750198246974,-490.0,0.00016438,2]
[366341335,1750198246984,-490.0,0.00016438,2]
[366341336,1750198246993,-490.0,0.00016438,2]
[366341337,1750198247003,-490.0,0.00016438,2]
[366341338,1750198247012,-490.0,0.00016438,2]
[366341339,1750198247022,-490.0,0.00016438,2]
[366341340,1750198247031,-728.37,0.00016438,2]
[366341341,1750198247041,-1488.19,0.00016438,2]
[366341342,1750198247051,-898.97,0.00016438,2]
[366341343,1750198247061,-490.0,0.00016438,2]
[366341344,1750198247070,-490.0,0.00016438,2]
[366341345,1750198247080,-490.0,0.00016438,2]
[366341346,1750198247089,-490.0,0.00016438,2]
[366341347,1750198247099,-490.0,0.00016438,2]
[366341348,1750198247108,-490.0,0.00016438,2]
[366341349,1750198247118,-490.0,0.00016438,2]
[366341350,1750198247127,-1432.03,0.00016438,2]
[366341351,1750198247137,-754.35,0.00016438,2]
[366341352,1750198247147,-490.0,0.00016438,2]
[366341353,1750198247156,-490.0,0.00016438,2]
[366341354,1750198247166,-955.55,0.00016438,2]
[366341355,1750198247176,-793.78,0.00016438,2]
[366341356,1750198247186,-490.0,0.00016438,2]
[366341357,1750198247196,-589.43,0.00016438,2]
[366341358,1750198247205,-490.0,0.00016438,2]
[366341359,1750198247215,-490.0,0.00016438,2]
[366341360,1750198247225,-357.04767916,0.00016438,2]
[366341361,1750198247235,-490.0,0.00016438,2]
[366341362,1750198247245,-490.0,0.00016438,2]
[366341363,1750198247254,-490.0,0.00016438,2]
[366341364,1750198247264,-490.0,0.00016438,2]
[366341365,1750198247274,-801.43,0.00016438,2]
[366341366,1750198247283,-1539.32,0.00016438,2]
[366341367,1750198247293,-1053.15,0.00016438,2]
[366341368,1750198247303,-490.0,0.00016438,2]
[366341369,1750198247313,-621.77,0.00016438,2]
[366341370,1750198247322,-490.0,0.00016438,2]
[366341371,1750198247331,-933.59,0.00016438,2]
[366341372,1750198247341,-490.0,0.00016438,2]
[366341373,1750198247351,-460.0,0.00016438,2]
[366341374,1750198247361,-490.0,0.00016438,2]
[366341375,1750198247371,-1470.99,0.00016438,2]
[366341376,1750198247381,-490.0,0.00016438,2]
[366341377,1750198247392,-1015.37,0.00016438,2]
[366341378,1750198247403,-490.0,0.00016438,2]
[366341379,1750198247413,-490.0,0.00016438,2]
[366341380,1750198247423,-490.0,0.00016438,2]
[366341381,1750198247433,-659.3,0.00016438,2]
[366341382,1750198247443,-490.0,0.00016438,2]
[366341383,1750198247452,-490.0,0.00016438,2]
[366341384,1750198247462,-670.74,0.00016438,2]
[366341385,1750198247472,-649.9,0.00016438,2]
[366341386,1750198247482,-490.0,0.00016438,2]
[366341387,1750198247492,-490.0,0.00016438,2]
[366341388,1750198247501,-490.0,0.00016438,2]
[366341389,1750198247510,-490.0,0.00016438,2]
[366341390,1750198247520,-151.0,0.00016438,2]
[366341391,1750198247529,-1023.4,0.00016438,2]
[366341392,1750198247538,-151.0,0.00016438,2]
[366341393,1750198247548,-548.7894206,0.00016438,2]
[366341394,1750198247557,-490.0,0.00016438,2]
[366341395,1750198247567,-1511.39,0.00016438,2]
[366341396,1750198247576,-797.08,0.00016438,2]
[366341397,1750198247586,-490.0,0.00016438,2]
[366341398,1750198247596,-865.7,0.00016438,2]
[366341399,1750198247606,-490.0,0.00016438,2]
[366341400,1750198247615,-490.0,0.00016438,2]
[366341401,1750198247625,-491.23,0.00016438,2]
[366341402,1750198247634,-490.0,0.00016438,2]
[366341403,1750198247645,-490.0,0.00016438,2]
[366341404,1750198247654,-490.0,0.00016438,2]
[366341405,1750198247664,-963.24,0.00016438,2]
[366341406,1750198247674,-490.0,0.00016438,2]
[366341407,1750198247683,-490.0,0.00016438,2]
[366341408,1750198247693,-490.0,0.00016438,2]
[366341409,1750198247702,-490.0,0.00016438,2]
[366341410,1750198247716,-1440.08,0.00016438,2]
[366341411,1750198247726,-490.0,0.00016438,2]
[366341412,1750198247735,-490.0,0.00016438,2]
[366341413,1750198247746,-490.0,0.00016438,2]
[366341414,1750198247756,-490.0,0.00016438,2]
[366341415,1750198247766,-490.0,0.00016438,2]
[366341416,1750198247776,-842.94,0.00016438,2]
[366341417,1750198247788,-557.38202968,0.00016438,2]
[366341418,1750198247798,-490.0,0.00016438,2]
[366341419,1750198247809,-490.0,0.00016438,2]
[366341420,1750198247819,-490.0,0.00016438,2]
[366341421,1750198247829,-490.0,0.00016438,2]
[366341422,1750198247839,-490.0,0.00016438,2]
[366341423,1750198247848,-490.0,0.00016438,2]
[366341424,1750198247858,-946.67,0.00016438,2]
[366341425,1750198247867,-490.0,0.00016438,2]
[366341426,1750198247878,-490.0,0.00016438,2]
[366341427,1750198247887,-490.0,0.00016438,2]
[366341428,1750198247898,-490.0,0.00016438,2]
[366341429,1750198247908,-490.0,0.00016438,2]
[366341430,1750198247918,-1451.55,0.00016438,2]
[366341431,1750198247927,-1689.9,0.00016438,2]
[366341432,1750198247937,-490.0,0.00016438,2]
[366341433,1750198247947,-490.0,0.00016438,2]
[366341434,1750198247957,-490.0,0.00016438,2]
[366341435,1750198247967,-490.0,0.00016438,2]
[366341436,1750198247976,-490.0,0.00016438,2]
[366341437,1750198247986,-697.26,0.00016438,2]
[366341438,1750198247996,-398.75598597,0.00016438,2]
[366341439,1750198248005,-522.29098692,0.00016438,2]
[366341440,1750198248015,-490.0,0.00016438,2]
[366341441,1750198248025,-808.54,0.00016438,2]
[366341442,1750198248035,-820.0,0.00016438,2]
[366341443,1750198248045,-490.0,0.00016438,2]
[366341444,1750198248054,-490.0,0.00016438,2]
[366341445,1750198248064,-490.0,0.00016438,2]
[366341446,1750198248074,-1127.99,0.00016438,2]
[366341447,1750198248084,-490.0,0.00016438,2]
[366341448,1750198248094,-490.0,0.00016438,2]
[366341449,1750198248104,-665.04,0.00016438,2]
[366341450,1750198248114,-151.0,0.00016438,2]
[366341451,1750198248124,-490.0,0.00016438,2]
[366341452,1750198248133,-1087.72,0.00016438,2]
[366341453,1750198248144,-151.0,0.00016438,2]
[366341454,1750198248155,-1962.24,0.00016438,2]
[366341455,1750198248165,-151.0,0.00016438,2]
[366341456,1750198248174,-1028.324979,0.00016438,2]
[366341457,1750198248184,-490.0,0.00016438,2]
[366341458,1750198248194,-1028.324979,0.00016438,2]
[366341459,1750198248204,-151.0,0.00016438,2]
[366341460,1750198248214,-490.0,0.00016438,2]
[366341461,1750198248224,-490.0,0.00016438,2]
[366341462,1750198248234,-151.0,0.00016438,2]
[366341463,1750198248244,-1028.324979,0.00016438,2]
[366341464,1750198248254,-151.0,0.00016438,2]
[366341465,1750198248264,-1028.324979,0.00016438,2]
[366341466,1750198248275,-151.0,0.00016438,2]
[366341467,1750198248285,-1145.72,0.00016438,2]
[366341468,1750198248294,-1028.324979,0.00016438,2]
[366341469,1750198248304,-832.7,0.00016438,2]
[366341470,1750198248315,-480.70107193,0.00016438,2]
[366341471,1750198248326,-1028.324979,0.00016438,2]
[366341472,1750198248336,-1028.324979,0.00016438,2]
[366341473,1750198248347,-490.0,0.00016438,2]
[366341474,1750198248357,-325.50323193,0.00016438,2]
[366341475,1750198248368,-1028.324979,0.00016438,2]
[366341476,1750198248378,-151.0,0.00016438,2]
[366341477,1750198248388,-490.0,0.00016438,2]
[366341478,1750198248399,-1028.324979,0.00016438,2]
[366341479,1750198248410,-151.0,0.00016438,2]
[366341480,1750198248419,-1028.324979,0.00016438,2]
[366341481,1750198248429,-1028.324979,0.00016438,2]
[366341482,1750198248439,-151.0,0.00016438,2]
[366341483,1750198248450,-1028.324979,0.00016438,2]
[366341484,1750198248460,-151.0,0.00016438,2]
[366341485,1750198248470,-490.0,0.00016438,2]
[366341486,1750198248480,-1028.324979,0.00016438,2]
[366341487,1750198248490,-151.0,0.00016438,2]
[366341488,1750198248500,-490.0,0.00016438,2]
[366341489,1750198248510,-490.0,0.00016438,2]
[366341490,1750198248520,-1028.324979,0.00016438,2]
[366341491,1750198248530,-151.0,0.00016438,2]
[366341492,1750198248540,-151.0,0.00016438,2]
[366341493,1750198248550,-151.0,0.00016438,2]
[366341494,1750198248560,-490.0,0.00016438,2]
[366341495,1750198248570,-151.0,0.00016438,2]
[366341496,1750198248580,-151.0,0.00016438,2]
[366341497,1750198248591,-151.0,0.00016438,2]
[366341498,1750198248601,-1982.08,0.00016438,2]
[366341499,1750198248611,-490.0,0.00016438,2]
[366341500,1750198248621,-151.0,0.00016438,2]
[366341501,1750198248631,-151.0,0.00016438,2]
[366341502,1750198248641,-151.0,0.00016438,2]
[366341503,1750198248654,-625.75,0.00016438,2]
[366341504,1750198248664,-490.0,0.00016438,2]
[366341505,1750198248674,-151.0,0.00016438,2]
[366341506,1750198248684,-490.0,0.00016438,2]
[366341507,1750198248694,-490.0,0.00016438,2]
[366341508,1750198248704,-490.0,0.00016438,2]
[366341509,1750198248715,-176.13159,0.00016438,2]
[366341510,1750198248725,-598.64,0.00016438,2]
[366341511,1750198248735,-641.0,0.00016438,2]
[366341512,1750198248745,-490.0,0.00016438,2]
[366341513,1750198248755,-490.0,0.00016438,2]
[366341514,1750198248765,-490.0,0.00016438,2]
[366341515,1750198248776,-879.66,0.00016438,2]
[366341516,1750198248786,-490.0,0.00016438,2]
[366341517,1750198248796,-300.0,0.00016438,2]
[366341518,1750198248806,-818.62,0.00016438,2]
[366341519,1750198248816,-490.0,0.00016438,2]
[366341520,1750198248826,-490.0,0.00016438,2]
[366341521,1750198248836,-1313.52,0.00016438,2]
[366341522,1750198248845,-490.0,0.00016438,2]
[366341523,1750198248855,-490.0,0.00016438,2]
[366341524,1750198248866,-169.76343832,0.00016438,2]
[366341525,1750198248876,-1259.08,0.00016438,2]
[366341526,1750198248887,-490.0,0.00016438,2]
[366341527,1750198248899,-496.05,0.00016438,2]
[366341528,1750198248909,-490.0,0.00016438,2]
[366341529,1750198248919,-490.0,0.00016438,2]
[366341530,1750198248929,-490.0,0.00016438,2]
[366341531,1750198248939,-490.0,0.00016438,2]
[366341532,1750198248949,-1095.61,0.00016438,2]
[366341533,1750198248959,-490.0,0.00016438,2]
[366341534,1750198248969,-2150.35,0.00016438,2]
[366341535,1750198248979,-490.0,0.00016438,2]
[366341536,1750198248990,-490.0,0.00016438,2]
[366341537,1750198249000,-1607.95,0.00016438,2]
[366341538,1750198249011,-490.0,0.00016438,2]
[366341539,1750198249021,-682.14,0.00016438,2]
[366341540,1750198249032,-490.0,0.00016438,2]
[366341541,1750198249042,-490.0,0.00016438,2]
[366341542,1750198249053,-490.0,0.00016438,2]
[366341543,1750198249062,-490.0,0.00016438,2]
[366341544,1750198249072,-151.0,0.00016438,2]
[366341545,1750198249082,-1093.02,0.00016438,2]
[366341546,1750198249091,-151.0,0.00016438,2]
[366341547,1750198249102,-151.0,0.00016438,2]
[366341548,1750198249112,-151.0,0.00016438,2]
[366341549,1750198249122,-151.0,0.00016438,2]
[366341550,1750198249132,-897.09,0.00016438,2]
[366341551,1750198249143,-490.0,0.00016438,2]
[366341552,1750198249153,-151.0,0.00016438,2]
[366341553,1750198249162,-490.0,0.00016438,2]
[366341554,1750198249171,-151.0,0.00016438,2]
[366341555,1750198249181,-163.443734,0.00016438,2]
[366341556,1750198249191,-151.0,0.00016438,2]
[366341557,1750198249200,-490.0,0.00016438,2]
[366341558,1750198249210,-490.0,0.00016438,2]
[366341559,1750198249219,-490.0,0.00016438,2]
[366341560,1750198249229,-490.0,0.00016438,2]
[366341561,1750198249239,-490.0,0.00016438,2]
[366341562,1750198249249,-490.0,0.00016438,2]
[366341563,1750198249258,-490.0,0.00016438,2]
[366341564,1750198249268,-814.19,0.00016438,2]
[366341565,1750198249278,-916.2,0.00016438,2]
[366341566,1750198249288,-490.0,0.00016438,2]
[366341567,1750198249298,-546.39091139,0.00016438,2]
[366341568,1750198249307,-2248.48,0.00016438,2]
[366341569,1750198249317,-490.0,0.00016438,2]
[366341570,1750198249327,-298.65808055,0.00016438,2]
[366341571,1750198249924,-191.34191945,0.00016438,2]
[366341572,1750198249934,-697.81,0.00016438,2]
[366341573,1750198249944,-170.70688055,0.00016438,2]
[366341574,1750198249955,-319.29311945,0.00016438,2]
[366341575,1750198249964,-315.26590712,0.00016438,2]
[366341576,1750198249993,-174.73409288,0.00016438,2]
[366341577,1750198250003,-481.46552899,0.00016438,2]
[366341578,1750198250015,-8.53447101,0.00016438,2]
[366341579,1750198250024,-490.0,0.00016438,2]
[366341580,1750198250035,-326.52103899,0.00016438,2]
[366341581,1750198250047,-163.47896101,0.00016438,2]
[366341582,1750198250057,-490.0,0.00016438,2]
[366341583,1750198250067,-220.50801689,0.00016438,2]
[366341584,1750198250076,-490.0,0.00016438,2]
[366341585,1750198250086,-490.0,0.00016438,2]
[366341586,1750198250096,-490.0,0.00016438,2]
[366341587,1750198250106,-490.0,0.00016438,2]
[366341588,1750198250116,-490.0,0.00016438,2]
[366341589,1750198250126,-490.0,0.00016438,2]
[366341590,1750198250135,-490.0,0.00016438,2]
[366341591,1750198250146,-490.0,0.00016438,2]
[366341592,1750198250156,-660.61,0.00016438,2]
[366341593,1750198250166,-490.0,0.00016438,2]
[366341594,1750198250176,-490.0,0.00016438,2]
[366341595,1750198250186,-490.0,0.00016438,2]
[366341596,1750198250196,-1464.86,0.00016438,2]
[366341597,1750198250206,-490.0,0.00016438,2]
[366341598,1750198250215,-490.0,0.00016438,2]
[366341599,1750198250225,-491.50189315,0.00016438,2]
[366341600,1750198250235,-490.0,0.00016438,2]
[366341601,1750198250245,-490.0,0.00016438,2]
[366341602,1750198250254,-676.71112895,0.00016438,2]
[366341603,1750198250268,-205.80887105,0.00016438,2]
[366341604,1750198250278,-476.26130132,0.00016438,2]
[366341605,1750198250298,-13.73869868,0.00016438,2]
[366341606,1750198250307,-490.0,0.00016438,2]
[366341607,1750198250317,-429.42950644,0.00016438,2]
[366341608,1750198250327,-243.06946958,0.00016438,2]
[366341609,1750198250343,-447.79289822,0.00016438,2]
[366341610,1750198251112,-755.0,0.00016438,2]
[366341611,1750198251122,-293.1033486,0.00016438,2]
[366341612,1750198251135,-60.2742836,0.00016438,2]
[366341613,1750198251146,-654.6481,0.00016438,2]
[366341614,1750198251156,-490.0,0.00016438,2]
[366341615,1750198251166,-32.39085056,0.00016438,2]
[366341616,1750198251178,-622.25724944,0.00016438,2]
[366341617,1750198251188,-482.75171305,0.00016438,2]
[366341618,1750198251199,-654.6481,0.00016438,2]
[366341619,1750198251208,-654.6481,0.00016438,2]
[366341620,1750198251218,-654.6481,0.00016438,2]
[366341621,1750198251229,-290.37536723,0.00016438,2]
[366341622,1750198251270,-364.27273277,0.00016438,2]
[366341623,1750198251281,-490.0,0.00016438,2]
[366341624,1750198251291,-654.6481,0.00016438,2]
[366341625,1750198251302,-151.0,0.00016438,2]
[366341626,1750198251312,-490.0,0.00016438,2]
[366341627,1750198251322,-151.0,0.00016438,2]
[366341628,1750198251332,-151.0,0.00016438,2]
[366341629,1750198251343,-490.0,0.00016438,2]
[366341630,1750198251354,-490.0,0.00016438,2]
[366341631,1750198251364,-151.0,0.00016438,2]
[366341632,1750198251373,-654.6481,0.00016438,2]
[366341633,1750198251384,-151.0,0.00016438,2]
[366341634,1750198251397,-654.6481,0.00016438,2]
[366341635,1750198251406,-151.0,0.00016438,2]
[366341636,1750198251416,-109.68256723,0.00016438,2]
[366341637,1750198251467,-544.96553277,0.00016438,2]
[366341638,1750198251478,-151.0,0.00016438,2]
[366341639,1750198251488,-490.0,0.00016438,2]
[366341640,1750198251498,-654.6481,0.00016438,2]
[366341641,1750198251508,-490.0,0.00016438,2]
[366341642,1750198251518,-654.6481,0.00016438,2]
[366341643,1750198251528,-654.6481,0.00016438,2]
[366341644,1750198251538,-381.82736763,0.00016438,2]
[366341645,1750198251552,-272.82073237,0.00016438,2]
[366341646,1750198251562,-490.0,0.00016438,2]
[366341647,1750198251573,-490.0,0.00016438,2]
[366341648,1750198251582,-334.2128642,0.00016438,2]
[366341649,1750198251697,-155.7871358,0.00016438,2]
[366341650,1750198251710,-490.0,0.00016438,2]
[366341651,1750198251720,-3.06426363,0.00016438,2]
[366341652,1750198251733,-473.66435226,0.00016438,2]
[366341653,1750198251750,-661.18138411,0.00016438,2]
[366341654,1750198251759,-225.53861589,0.00016438,2]
[366341655,1750198251771,-264.46138411,0.00016438,2]
[366341656,1750198251783,-490.0,0.00016438,2]
[366341657,1750198251793,-490.0,0.00016438,2]
[366341658,1750198251803,-490.0,0.00016438,2]
[366341659,1750198251814,-490.0,0.00016438,2]
[366341660,1750198251824,-1589.06,0.00016438,2]
[366341661,1750198251835,-490.03,0.00016438,2]
[366341662,1750198251845,-490.0,0.00016438,2]
[366341663,1750198251856,-569.2,0.00016438,2]
[366341664,1750198251866,-490.0,0.00016438,2]
[366341665,1750198251877,-490.0,0.00016438,2]
[366341666,1750198251887,-490.0,0.00016438,2]
[366341667,1750198251898,-1017.29,0.00016438,2]
[366341668,1750198251908,-490.0,0.00016438,2]
[366341669,1750198251918,-490.0,0.00016438,2]
[366341670,1750198251928,-490.0,0.00016438,2]
[366341671,1750198251938,-490.0,0.00016438,2]
[366341672,1750198251948,-667.87,0.00016438,2]
[366341673,1750198251958,-490.0,0.00016438,2]
[366341674,1750198251969,-1330.63,0.00016438,2]
[366341675,1750198251979,-515.68993563,0.00016438,2]
[366341676,1750198251989,-1889.35,0.00016438,2]
[366341677,1750198251999,-490.0,0.00016438,2]
[366341678,1750198252009,-490.0,0.00016438,2]
[366341679,1750198252019,-490.0,0.00016438,2]
[366341680,1750198252030,-490.0,0.00016438,2]
[366341681,1750198252041,-490.0,0.00016438,2]
[366341682,1750198252051,-490.0,0.00016438,2]
[366341683,1750198252062,-490.0,0.00016438,2]
[366341684,1750198252072,-838.63,0.00016438,2]
[366341685,1750198252082,-490.0,0.00016438,2]
[366341686,1750198252093,-490.0,0.00016438,2]
[366341687,1750198252103,-490.0,0.00016438,2]
[366341688,1750198252113,-490.0,0.00016438,2]
[366341689,1750198252123,-678.24,0.00016438,2]
[366341690,1750198252134,-762.98,0.00016438,2]
[366341691,1750198252144,-1239.2,0.00016438,2]
[366341692,1750198252154,-490.0,0.00016438,2]
[366341693,1750198252164,-490.0,0.00016438,2]
[366341694,1750198252174,-490.0,0.00016438,2]
[366341695,1750198252184,-490.0,0.00016438,2]
[366341696,1750198252194,-490.0,0.00016438,2]
[366341697,1750198252205,-151.0,0.00016438,2]
[366341698,1750198252215,-261.740211,0.00016438,2]
[366341699,1750198252226,-1064.24,0.00016438,2]
[366341700,1750198252236,-490.0,0.00016438,2]
[366341701,1750198252247,-490.0,0.00016438,2]
[366341702,1750198252257,-490.0,0.00016438,2]
[366341703,1750198252267,-490.0,0.00016438,2]
[366341704,1750198252277,-2279.89,0.00016438,2]
[366341705,1750198252288,-490.0,0.00016438,2]
[366341706,1750198252298,-600.8,0.00016438,2]
[366341707,1750198252308,-490.0,0.00016438,2]
[366341708,1750198252319,-743.04,0.00016438,2]
[366341709,1750198252329,-490.0,0.00016438,2]
[366341710,1750198252339,-490.0,0.00016438,2]
[366341711,1750198252349,-490.0,0.00016438,2]
[366341712,1750198252359,-490.0,0.00016438,2]
[366341713,1750198252369,-339.12521491,0.00016438,2]
[366341714,1750198252380,-490.0,0.00016438,2]
[366341715,1750198252390,-1340.54,0.00016438,2]
[366341716,1750198252401,-490.0,0.00016438,2]
[366341717,1750198252411,-1371.44,0.00016438,2]